[Event "Titled Tuesday Blitz March 21 Late 2023"]
[White "Storn, Justin"]
[Black "Medina Paz, Miguel"]
[WhiteFideId "30922720"]
[BlackFideId "7300379"]
[WhiteElo "2321"]
[BlackElo "2428"]
[Result "0-1"]
[Round "05"]
[TimeControl "180+2"]
[Date "2023.03.21"]
[WhiteClock "0:00:53"]
[BlackClock "0:01:03"]

1. d4 {[%clk 0:03:00]}  e6 {[%clk 0:02:59]} 2. c4 {[%clk 0:03:00]}  Nf6 {[%clk 0:02:59]} 3. Nc3 {[%clk 0:03:00]}  Bb4 {[%clk 0:03:00]} 4. e3 {[%clk 0:03:00]}  Bxc3+ {[%clk 0:03:00]} 5. bxc3 {[%clk 0:03:00]}  c5 {[%clk 0:03:00]} 6. Bd3 {[%clk 0:02:58]}  d6 {[%clk 0:03:00]} 7. Nf3 {[%clk 0:02:51]}  Nc6 {[%clk 0:03:00]} 8. O-O {[%clk 0:02:51]}  e5 {[%clk 0:03:00]} 9. d5 {[%clk 0:02:46]}  Ne7 {[%clk 0:03:00]} 10. e4 {[%clk 0:02:44]}  Ng6 {[%clk 0:03:00]} 11. Rb1 {[%clk 0:02:32]}  O-O {[%clk 0:02:59]} 12. Re1 {[%clk 0:02:30]}  Rb8 {[%clk 0:02:57]} 13. Bf1 {[%clk 0:02:29]}  Bg4 {[%clk 0:02:55]} 14. h3 {[%clk 0:02:28]}  Bc8 {[%clk 0:02:52]} 15. g3 {[%clk 0:02:29]}  b6 {[%clk 0:02:51]} 16. a4 {[%clk 0:02:26]}  a5 {[%clk 0:02:50]} 17. Be3 {[%clk 0:02:20]}  h6 {[%clk 0:02:50]} 18. Rb2 {[%clk 0:02:18]}  Qe7 {[%clk 0:02:45]} 19. Nd2 {[%clk 0:02:15]}  Nh7 {[%clk 0:02:39]} 20. Qh5 {[%clk 0:02:12]}  Bd7 {[%clk 0:02:32]} 21. Ra2 {[%clk 0:02:07]}  Qe8 {[%clk 0:02:30]} 22. Bd3 {[%clk 0:02:01]}  Bxa4 {[%clk 0:02:28]} 23. Rb1 {[%clk 0:01:57]}  Bd7 {[%clk 0:02:27]} 24. Rab2 {[%clk 0:01:57]}  Qd8 {[%clk 0:02:25]} 25. Nb3 {[%clk 0:01:52]}  Ra8 {[%clk 0:02:21]} 26. Nc1 {[%clk 0:01:48]}  a4 {[%clk 0:02:18]} 27. Rxb6 {[%clk 0:01:47]}  a3 {[%clk 0:02:13]} 28. Na2 {[%clk 0:01:47]}  Bc8 {[%clk 0:01:46]} 29. Kh2 {[%clk 0:01:44]}  Nf6 {[%clk 0:01:39]} 30. Qd1 {[%clk 0:01:43]}  Nh7 {[%clk 0:01:39]} 31. Qh5 {[%clk 0:01:33]}  Nf6 {[%clk 0:01:36]} 32. Qd1 {[%clk 0:01:33]}  Kh7 {[%clk 0:01:33]} 33. Bc1 {[%clk 0:01:33]}  Qd7 {[%clk 0:01:30]} 34. Qb3 {[%clk 0:01:26]}  Qxh3+ {[%clk 0:01:29]} 35. Kg1 {[%clk 0:01:26]}  Ng4 {[%clk 0:01:28]} 36. Be3 {[%clk 0:01:23]}  Nxe3 {[%clk 0:01:27]} 37. fxe3 {[%clk 0:01:23]}  Qxg3+ {[%clk 0:01:28]} 38. Kf1 {[%clk 0:01:24]}  Qf3+ {[%clk 0:01:26]} 39. Ke1 {[%clk 0:01:24]}  Qxe3+ {[%clk 0:01:26]} 40. Be2 {[%clk 0:01:25]}  Nf4 {[%clk 0:01:26]} 41. Nc1 {[%clk 0:01:18]}  Bg4 {[%clk 0:01:22]} 42. Qc2 {[%clk 0:01:18]}  a2 {[%clk 0:01:12]} 43. Ra1 {[%clk 0:01:17]}  f5 {[%clk 0:01:06]} 44. Rxd6 {[%clk 0:01:10]}  fxe4 {[%clk 0:01:05]} 45. Rc6 {[%clk 0:00:54]}  Ng2+ {[%clk 0:01:04]} 46. Kd1 {[%clk 0:00:53]}  Rf1# {[%clk 0:01:03]} 0-1


[Site "https://www.chess.com"]

[Event "Titled Tuesday Blitz March 21 Late 2023"]
[White "Mendez Fortes, Eduardo Jesus"]
[Black "MunichMouse"]
[WhiteFideId "3502376"]
[WhiteElo "2307"]
[BlackElo "2320"]
[Result "1-0"]
[Round "05"]
[TimeControl "180+2"]
[Date "2023.03.21"]
[WhiteClock "0:02:38"]
[BlackClock "0:00:45"]

1. e4 {[%clk 0:02:57]}  c5 {[%clk 0:01:07]} 2. Nf3 {[%clk 0:02:56]}  d6 {[%clk 0:01:08]} 3. d4 {[%clk 0:02:56]}  cxd4 {[%clk 0:01:09]} 4. Nxd4 {[%clk 0:02:57]}  Nf6 {[%clk 0:01:09]} 5. Nc3 {[%clk 0:02:57]}  a6 {[%clk 0:01:10]} 6. Bg5 {[%clk 0:02:57]}  e6 {[%clk 0:01:08]} 7. f4 {[%clk 0:02:57]}  Be7 {[%clk 0:01:09]} 8. Qf3 {[%clk 0:02:56]}  Qc7 {[%clk 0:01:10]} 9. O-O-O {[%clk 0:02:55]}  Bd7 {[%clk 0:01:11]} 10. Bd3 {[%clk 0:02:48]}  Nc6 {[%clk 0:01:11]} 11. Nxc6 {[%clk 0:02:48]}  Qxc6 {[%clk 0:01:12]} 12. Rhe1 {[%clk 0:02:45]}  b5 {[%clk 0:01:11]} 13. Qg3 {[%clk 0:02:44]}  b4 {[%clk 0:01:12]} 14. Ne2 {[%clk 0:02:45]}  h6 {[%clk 0:01:10]} 15. Bxf6 {[%clk 0:02:41]}  Bxf6 {[%clk 0:01:10]} 16. e5 {[%clk 0:02:40]}  dxe5 {[%clk 0:01:11]} 17. fxe5 {[%clk 0:02:41]}  Bg5+ {[%clk 0:01:11]} 18. Kb1 {[%clk 0:02:41]}  O-O {[%clk 0:01:11]} 19. h4 {[%clk 0:02:41]}  Be7 {[%clk 0:01:11]} 20. Nd4 {[%clk 0:02:41]}  Qb6 {[%clk 0:01:03]} 21. Qf4 {[%clk 0:02:40]}  Bc6 {[%clk 0:00:47]} 22. Nxc6 {[%clk 0:02:37]}  Qxc6 {[%clk 0:00:47]} 23. Be4 {[%clk 0:02:37]}  Qc4 {[%clk 0:00:46]} 24. Bh7+ {[%clk 0:02:37]}  Kxh7 {[%clk 0:00:45]} 25. Qxc4 {[%clk 0:02:38]}  Rac8 {[%clk 0:00:45]} 1-0


[Site "https://www.chess.com"]

[Event "Titled Tuesday Blitz March 21 Late 2023"]
[White "Bochnicka, Vladimir"]
[Black "dorpato"]
[WhiteFideId "14943450"]
[WhiteElo "2094"]
[BlackElo "2017"]
[Result "1-0"]
[Round "05"]
[TimeControl "180+2"]
[Date "2023.03.21"]
[WhiteClock "0:00:13"]
[BlackClock "0:00:15"]

1. e4 {[%clk 0:03:00]}  c5 {[%clk 0:02:58]} 2. Nf3 {[%clk 0:03:01]}  g6 {[%clk 0:02:58]} 3. d4 {[%clk 0:03:01]}  cxd4 {[%clk 0:02:58]} 4. Nxd4 {[%clk 0:03:02]}  Bg7 {[%clk 0:02:58]} 5. c4 {[%clk 0:03:01]}  Nc6 {[%clk 0:02:57]} 6. Be3 {[%clk 0:03:01]}  Nf6 {[%clk 0:02:57]} 7. Nc3 {[%clk 0:03:01]}  d6 {[%clk 0:02:54]} 8. Be2 {[%clk 0:03:00]}  O-O {[%clk 0:02:54]} 9. O-O {[%clk 0:02:57]}  Bd7 {[%clk 0:02:54]} 10. h3 {[%clk 0:02:55]}  Nxd4 {[%clk 0:02:52]} 11. Bxd4 {[%clk 0:02:56]}  Bc6 {[%clk 0:02:52]} 12. Qc2 {[%clk 0:02:56]}  a5 {[%clk 0:02:50]} 13. Rad1 {[%clk 0:02:53]}  Nd7 {[%clk 0:02:37]} 14. Bxg7 {[%clk 0:02:53]}  Kxg7 {[%clk 0:02:37]} 15. Bg4 {[%clk 0:02:54]}  Ne5 {[%clk 0:02:26]} 16. c5 {[%clk 0:02:54]}  Nxg4 {[%clk 0:02:22]} 17. hxg4 {[%clk 0:02:55]}  Qd7 {[%clk 0:02:17]} 18. cxd6 {[%clk 0:02:53]}  exd6 {[%clk 0:02:16]} 19. f3 {[%clk 0:02:28]}  Qe6 {[%clk 0:02:05]} 20. Qd2 {[%clk 0:02:13]}  Rad8 {[%clk 0:01:56]} 21. Kf2 {[%clk 0:02:01]}  Qe5 {[%clk 0:01:29]} 22. Rh1 {[%clk 0:01:54]}  g5 {[%clk 0:01:11]} 23. Qd4 {[%clk 0:01:42]}  h6 {[%clk 0:01:02]} 24. Ne2 {[%clk 0:01:34]}  Qxd4+ {[%clk 0:00:55]} 25. Nxd4 {[%clk 0:01:21]}  Bd7 {[%clk 0:00:50]} 26. Nc2 {[%clk 0:01:14]}  Be6 {[%clk 0:00:49]} 27. Ne3 {[%clk 0:01:06]}  Rd7 {[%clk 0:00:36]} 28. Rd4 {[%clk 0:00:57]}  Rc8 {[%clk 0:00:28]} 29. Rhd1 {[%clk 0:00:44]}  Rc6 {[%clk 0:00:28]} 30. Kg3 {[%clk 0:00:25]}  Kf8 {[%clk 0:00:24]} 31. a3 {[%clk 0:00:22]}  Ke7 {[%clk 0:00:23]} 32. R1d2 {[%clk 0:00:22]}  b6 {[%clk 0:00:23]} 33. Rd1 {[%clk 0:00:19]}  f6 {[%clk 0:00:22]} 34. Rh1 {[%clk 0:00:19]}  Rc5 {[%clk 0:00:21]} 35. Rxh6 {[%clk 0:00:18]}  d5 {[%clk 0:00:19]} 36. Rh7+ {[%clk 0:00:17]}  Ke8 {[%clk 0:00:19]} 37. Rxd7 {[%clk 0:00:18]}  Kxd7 {[%clk 0:00:20]} 38. exd5 {[%clk 0:00:18]}  Bf7 {[%clk 0:00:19]} 39. f4 {[%clk 0:00:14]}  gxf4+ {[%clk 0:00:19]} 40. Kxf4 {[%clk 0:00:14]}  Kd6 {[%clk 0:00:19]} 41. Nf5+ {[%clk 0:00:13]}  Kd7 {[%clk 0:00:18]} 42. d6 {[%clk 0:00:14]}  Re5 {[%clk 0:00:17]} 43. Re4 {[%clk 0:00:13]}  Rxe4+ {[%clk 0:00:11]} 44. Kxe4 {[%clk 0:00:13]}  Be6 {[%clk 0:00:12]} 45. Kd4 {[%clk 0:00:14]}  Bxf5 {[%clk 0:00:12]} 46. gxf5 {[%clk 0:00:14]}  Kxd6 {[%clk 0:00:12]} 47. g4 {[%clk 0:00:15]}  b5 {[%clk 0:00:12]} 48. b3 {[%clk 0:00:14]}  Kc6 {[%clk 0:00:13]} 49. b4 {[%clk 0:00:10]}  axb4 {[%clk 0:00:12]} 50. axb4 {[%clk 0:00:11]}  Kd6 {[%clk 0:00:12]} 51. Ke4 {[%clk 0:00:12]}  Kc6 {[%clk 0:00:12]} 52. Kf4 {[%clk 0:00:12]}  Kd5 {[%clk 0:00:12]} 53. g5 {[%clk 0:00:12]}  fxg5+ {[%clk 0:00:12]} 54. Kxg5 {[%clk 0:00:13]}  Kc4 {[%clk 0:00:13]} 55. f6 {[%clk 0:00:13]}  Kxb4 {[%clk 0:00:14]} 56. f7 {[%clk 0:00:14]}  Ka3 {[%clk 0:00:14]} 57. f8=Q+ {[%clk 0:00:14]}  b4 {[%clk 0:00:15]} 58. Qf1 {[%clk 0:00:12]}  b3 {[%clk 0:00:15]} 59. Qb1 {[%clk 0:00:12]}  b2 {[%clk 0:00:15]} 60. Kf4 {[%clk 0:00:13]} 1-0


[Site "https://www.chess.com"]

[Event "Titled Tuesday Blitz March 21 Late 2023"]
[White "Melikhov, Evgeny V."]
[Black "Jeet, Jain"]
[WhiteFideId "4122046"]
[BlackFideId "5073022"]
[WhiteElo "2158"]
[BlackElo "2067"]
[Result "1-0"]
[Round "05"]
[TimeControl "180+2"]
[Date "2023.03.21"]
[WhiteClock "0:00:08"]
[BlackClock "0:00:44"]

1. d4 {[%clk 0:03:00]}  Nf6 {[%clk 0:02:50]} 2. c4 {[%clk 0:03:00]}  g6 {[%clk 0:02:51]} 3. Nc3 {[%clk 0:03:00]}  Bg7 {[%clk 0:02:52]} 4. e4 {[%clk 0:03:00]}  d6 {[%clk 0:02:52]} 5. f3 {[%clk 0:03:00]}  O-O {[%clk 0:02:51]} 6. Be3 {[%clk 0:03:01]}  c5 {[%clk 0:02:50]} 7. Nge2 {[%clk 0:03:00]}  cxd4 {[%clk 0:02:49]} 8. Nxd4 {[%clk 0:03:00]}  Nc6 {[%clk 0:02:49]} 9. Be2 {[%clk 0:03:00]}  a5 {[%clk 0:02:46]} 10. O-O {[%clk 0:02:59]}  Nxd4 {[%clk 0:02:47]} 11. Bxd4 {[%clk 0:02:59]}  Bd7 {[%clk 0:02:48]} 12. Qd2 {[%clk 0:02:54]}  Bc6 {[%clk 0:02:48]} 13. Rfc1 {[%clk 0:02:48]}  Nd7 {[%clk 0:02:48]} 14. Bxg7 {[%clk 0:02:47]}  Kxg7 {[%clk 0:02:49]} 15. Qd4+ {[%clk 0:02:46]}  Kg8 {[%clk 0:02:49]} 16. Rab1 {[%clk 0:02:44]}  Qb6 {[%clk 0:02:49]} 17. Qxb6 {[%clk 0:02:43]}  Nxb6 {[%clk 0:02:50]} 18. b3 {[%clk 0:02:42]}  Rfd8 {[%clk 0:02:44]} 19. Nd5 {[%clk 0:02:37]}  Bxd5 {[%clk 0:02:42]} 20. cxd5 {[%clk 0:02:37]}  Rdc8 {[%clk 0:02:42]} 21. Kf2 {[%clk 0:02:36]}  Rxc1 {[%clk 0:02:42]} 22. Rxc1 {[%clk 0:02:36]}  Rc8 {[%clk 0:02:43]} 23. Rxc8+ {[%clk 0:02:35]}  Nxc8 {[%clk 0:02:44]} 24. Ke3 {[%clk 0:02:36]}  Kg7 {[%clk 0:02:37]} 25. Kd4 {[%clk 0:02:36]}  Kf6 {[%clk 0:02:37]} 26. f4 {[%clk 0:02:34]}  g5 {[%clk 0:02:35]} 27. g3 {[%clk 0:02:34]}  Nb6 {[%clk 0:02:31]} 28. Bg4 {[%clk 0:02:28]}  h6 {[%clk 0:02:25]} 29. e5+ {[%clk 0:02:27]}  Kg7 {[%clk 0:02:25]} 30. a3 {[%clk 0:01:44]}  f6 {[%clk 0:02:12]} 31. b4 {[%clk 0:01:36]}  axb4 {[%clk 0:02:08]} 32. axb4 {[%clk 0:01:36]}  fxe5+ {[%clk 0:02:06]} 33. fxe5 {[%clk 0:01:36]}  Kg6 {[%clk 0:02:07]} 34. Be2 {[%clk 0:01:29]}  Kf5 {[%clk 0:02:02]} 35. Bd3+ {[%clk 0:01:27]}  Kg4 {[%clk 0:02:02]} 36. Be2+ {[%clk 0:01:24]}  Kh3 {[%clk 0:02:02]} 37. e6 {[%clk 0:00:45]}  Kxh2 {[%clk 0:02:00]} 38. g4 {[%clk 0:00:43]}  Kg3 {[%clk 0:02:00]} 39. Ke4 {[%clk 0:00:43]}  Kf2 {[%clk 0:01:58]} 40. Bd3 {[%clk 0:00:41]}  Kg3 {[%clk 0:01:49]} 41. Be2 {[%clk 0:00:41]}  Na4 {[%clk 0:01:50]} 42. Kf5 {[%clk 0:00:31]}  Nc3 {[%clk 0:01:47]} 43. Bc4 {[%clk 0:00:31]}  b5 {[%clk 0:01:41]} 44. Bb3 {[%clk 0:00:30]}  Kh4 {[%clk 0:01:39]} 45. Kg6 {[%clk 0:00:30]}  Kxg4 {[%clk 0:01:38]} 46. Kf7 {[%clk 0:00:30]}  h5 {[%clk 0:01:35]} 47. Kxe7 {[%clk 0:00:30]}  h4 {[%clk 0:01:35]} 48. Kf7 {[%clk 0:00:21]}  h3 {[%clk 0:01:31]} 49. e7 {[%clk 0:00:22]}  h2 {[%clk 0:01:31]} 50. e8=Q {[%clk 0:00:22]}  h1=Q {[%clk 0:01:32]} 51. Qe6+ {[%clk 0:00:21]}  Kf3 {[%clk 0:01:23]} 52. Qf5+ {[%clk 0:00:18]}  Kg2 {[%clk 0:01:03]} 53. Qc2+ {[%clk 0:00:15]}  Kg1 {[%clk 0:01:00]} 54. Qxc3 {[%clk 0:00:13]}  Qh7+ {[%clk 0:01:01]} 55. Ke6 {[%clk 0:00:11]}  Qg6+ {[%clk 0:00:54]} 56. Kd7 {[%clk 0:00:10]}  g4 {[%clk 0:00:52]} 57. Bc2 {[%clk 0:00:08]}  Qh6 {[%clk 0:00:45]} 58. Qg3+ {[%clk 0:00:07]}  Kf1 {[%clk 0:00:44]} 59. Bd3# {[%clk 0:00:08]} 1-0


[Site "https://www.chess.com"]

[Event "Titled Tuesday Blitz March 21 Late 2023"]
[White "Carbone, Diego"]
[Black "Romero Ruscalleda, Josep"]
[WhiteFideId "3002179"]
[BlackFideId "2231859"]
[WhiteElo "2266"]
[BlackElo "2183"]
[Result "0-1"]
[Round "05"]
[TimeControl "180+2"]
[Date "2023.03.21"]
[WhiteClock "0:00:02"]
[BlackClock "0:00:01"]

1. d4 {[%clk 0:03:00]}  g6 {[%clk 0:02:58]} 2. Nf3 {[%clk 0:03:00]}  Bg7 {[%clk 0:02:58]} 3. g3 {[%clk 0:03:00]}  d6 {[%clk 0:02:59]} 4. Bg2 {[%clk 0:03:01]}  Nc6 {[%clk 0:02:58]} 5. c4 {[%clk 0:02:58]}  f5 {[%clk 0:02:58]} 6. Nc3 {[%clk 0:02:57]}  Nf6 {[%clk 0:02:58]} 7. O-O {[%clk 0:02:57]}  O-O {[%clk 0:02:57]} 8. Re1 {[%clk 0:02:54]}  e5 {[%clk 0:02:51]} 9. d5 {[%clk 0:02:38]}  Ne7 {[%clk 0:02:50]} 10. e4 {[%clk 0:02:38]}  a6 {[%clk 0:02:35]} 11. Ng5 {[%clk 0:02:25]}  Nh5 {[%clk 0:01:58]} 12. exf5 {[%clk 0:02:15]}  Nxf5 {[%clk 0:01:28]} 13. g4 {[%clk 0:02:11]}  Nh4 {[%clk 0:01:28]} 14. gxh5 {[%clk 0:02:08]}  Qf6 {[%clk 0:01:24]} 15. Be3 {[%clk 0:02:04]}  Nxg2 {[%clk 0:01:21]} 16. Kxg2 {[%clk 0:02:04]}  h6 {[%clk 0:01:19]} 17. Nce4 {[%clk 0:01:42]}  Qe7 {[%clk 0:01:19]} 18. hxg6 {[%clk 0:01:30]}  hxg5 {[%clk 0:01:13]} 19. Qh5 {[%clk 0:01:22]}  Rf4 {[%clk 0:01:03]} 20. Bxf4 {[%clk 0:01:15]}  gxf4 {[%clk 0:01:03]} 21. Ng5 {[%clk 0:01:10]}  Bf5 {[%clk 0:00:56]} 22. f3 {[%clk 0:01:03]}  Qf6 {[%clk 0:00:53]} 23. Qh7+ {[%clk 0:00:42]}  Kf8 {[%clk 0:00:53]} 24. Ne6+ {[%clk 0:00:42]}  Bxe6 {[%clk 0:00:53]} 25. dxe6 {[%clk 0:00:43]}  Ke7 {[%clk 0:00:51]} 26. Qh5 {[%clk 0:00:42]}  Rh8 {[%clk 0:00:49]} 27. Qg4 {[%clk 0:00:42]}  Rh6 {[%clk 0:00:47]} 28. Kh1 {[%clk 0:00:38]}  Rxg6 {[%clk 0:00:44]} 29. Qh5 {[%clk 0:00:34]}  Qxe6 {[%clk 0:00:20]} 30. Rg1 {[%clk 0:00:33]}  Rxg1+ {[%clk 0:00:20]} 31. Rxg1 {[%clk 0:00:33]}  Bf6 {[%clk 0:00:20]} 32. Qh7+ {[%clk 0:00:32]}  Qf7 {[%clk 0:00:17]} 33. Qe4 {[%clk 0:00:26]}  c6 {[%clk 0:00:15]} 34. Rc1 {[%clk 0:00:26]}  Bh4 {[%clk 0:00:13]} 35. Rg1 {[%clk 0:00:23]}  Bf2 {[%clk 0:00:11]} 36. Rg2 {[%clk 0:00:18]}  Bd4 {[%clk 0:00:11]} 37. b3 {[%clk 0:00:19]}  d5 {[%clk 0:00:10]} 38. cxd5 {[%clk 0:00:16]}  cxd5 {[%clk 0:00:10]} 39. Qc2 {[%clk 0:00:14]}  Kd7 {[%clk 0:00:10]} 40. Rg5 {[%clk 0:00:12]}  Qf6 {[%clk 0:00:06]} 41. Qg2 {[%clk 0:00:12]}  Kc7 {[%clk 0:00:05]} 42. Rg7+ {[%clk 0:00:12]}  Kb8 {[%clk 0:00:05]} 43. Rg8+ {[%clk 0:00:11]}  Ka7 {[%clk 0:00:05]} 44. Qg4 {[%clk 0:00:09]}  e4 {[%clk 0:00:05]} 45. Rg6 {[%clk 0:00:08]}  Qh8 {[%clk 0:00:04]} 46. Qxf4 {[%clk 0:00:04]}  Be5 {[%clk 0:00:02]} 47. Qh6 {[%clk 0:00:02]}  Qc8 {[%clk 0:00:01]} 0-1


[Site "https://www.chess.com"]

[Event "Titled Tuesday Blitz March 21 Late 2023"]
[White "Castella Garcia, Fausto"]
[Black "Shohat, Yotam"]
[WhiteFideId "3501922"]
[BlackFideId "2813955"]
[WhiteElo "2245"]
[BlackElo "2226"]
[Result "0-1"]
[Round "05"]
[TimeControl "180+2"]
[Date "2023.03.21"]
[WhiteClock "0:00:03"]
[BlackClock "0:00:05"]

1. e4 {[%clk 0:03:00]}  c5 {[%clk 0:02:59]} 2. Nf3 {[%clk 0:03:00]}  d6 {[%clk 0:02:59]} 3. d4 {[%clk 0:03:00]}  cxd4 {[%clk 0:03:00]} 4. Nxd4 {[%clk 0:03:00]}  Nf6 {[%clk 0:02:59]} 5. Nc3 {[%clk 0:03:01]}  a6 {[%clk 0:02:59]} 6. Bg5 {[%clk 0:03:01]}  e6 {[%clk 0:02:58]} 7. f4 {[%clk 0:03:01]}  Nbd7 {[%clk 0:02:58]} 8. Qf3 {[%clk 0:03:01]}  Qc7 {[%clk 0:02:58]} 9. O-O-O {[%clk 0:02:58]}  b5 {[%clk 0:02:58]} 10. g4 {[%clk 0:02:57]}  Bb7 {[%clk 0:02:52]} 11. Bxf6 {[%clk 0:02:57]}  Nxf6 {[%clk 0:02:53]} 12. g5 {[%clk 0:02:57]}  b4 {[%clk 0:02:48]} 13. gxf6 {[%clk 0:02:41]}  bxc3 {[%clk 0:02:41]} 14. f5 {[%clk 0:02:07]}  cxb2+ {[%clk 0:02:38]} 15. Kb1 {[%clk 0:02:07]}  e5 {[%clk 0:01:26]} 16. fxg7 {[%clk 0:02:03]}  Bxg7 {[%clk 0:01:27]} 17. f6 {[%clk 0:02:01]}  exd4 {[%clk 0:00:47]} 18. fxg7 {[%clk 0:01:59]}  Rg8 {[%clk 0:00:42]} 19. Rxd4 {[%clk 0:01:41]}  O-O-O {[%clk 0:00:32]} 20. Rc4 {[%clk 0:01:38]}  Bc6 {[%clk 0:00:32]} 21. Qc3 {[%clk 0:01:28]}  Kb7 {[%clk 0:00:30]} 22. Rg1 {[%clk 0:00:37]}  Rc8 {[%clk 0:00:26]} 23. Rg5 {[%clk 0:00:33]}  Ka7 {[%clk 0:00:20]} 24. Qd4+ {[%clk 0:00:30]}  Qb6 {[%clk 0:00:19]} 25. Qxb6+ {[%clk 0:00:27]}  Kxb6 {[%clk 0:00:20]} 26. Rb4+ {[%clk 0:00:27]}  Kc7 {[%clk 0:00:16]} 27. Bxa6 {[%clk 0:00:25]}  Rce8 {[%clk 0:00:16]} 28. Bd3 {[%clk 0:00:24]}  Re5 {[%clk 0:00:16]} 29. Rxe5 {[%clk 0:00:23]}  dxe5 {[%clk 0:00:16]} 30. Kxb2 {[%clk 0:00:23]}  Rxg7 {[%clk 0:00:17]} 31. a4 {[%clk 0:00:23]}  Rg2 {[%clk 0:00:15]} 32. a5 {[%clk 0:00:22]}  Rxh2 {[%clk 0:00:11]} 33. a6 {[%clk 0:00:23]}  Rg2 {[%clk 0:00:10]} 34. a7 {[%clk 0:00:20]}  Rg8 {[%clk 0:00:10]} 35. Rc4 {[%clk 0:00:10]}  Ra8 {[%clk 0:00:10]} 36. Rc5 {[%clk 0:00:08]}  Kd6 {[%clk 0:00:08]} 37. Ra5 {[%clk 0:00:07]}  h5 {[%clk 0:00:08]} 38. Be2 {[%clk 0:00:04]}  Bxe4 {[%clk 0:00:05]} 39. Bxh5 {[%clk 0:00:03]}  f5 {[%clk 0:00:05]} 0-1


[Site "https://www.chess.com"]

[Event "Titled Tuesday Blitz March 21 Late 2023"]
[White "Wang, Alexander J"]
[Black "Balla, Tamas-Kristof"]
[WhiteFideId "30955270"]
[BlackFideId "1208497"]
[WhiteElo "2262"]
[BlackElo "2334"]
[Result "1-0"]
[Round "05"]
[TimeControl "180+2"]
[Date "2023.03.21"]
[WhiteClock "0:00:21"]
[BlackClock "0:00:05"]

1. e4 {[%clk 0:03:00]}  c6 {[%clk 0:02:58]} 2. d4 {[%clk 0:03:00]}  d5 {[%clk 0:02:58]} 3. f3 {[%clk 0:03:01]}  dxe4 {[%clk 0:02:58]} 4. fxe4 {[%clk 0:03:02]}  e5 {[%clk 0:02:58]} 5. Nf3 {[%clk 0:03:01]}  Bg4 {[%clk 0:02:57]} 6. Bc4 {[%clk 0:03:01]}  Nd7 {[%clk 0:02:53]} 7. c3 {[%clk 0:02:59]}  Ngf6 {[%clk 0:02:52]} 8. O-O {[%clk 0:02:57]}  Bh5 {[%clk 0:02:52]} 9. Bg5 {[%clk 0:02:56]}  Be7 {[%clk 0:02:29]} 10. Nbd2 {[%clk 0:02:36]}  Qc7 {[%clk 0:02:22]} 11. Qc2 {[%clk 0:02:24]}  O-O {[%clk 0:02:19]} 12. Rae1 {[%clk 0:02:00]}  Rfe8 {[%clk 0:02:08]} 13. Nh4 {[%clk 0:01:45]}  b5 {[%clk 0:01:58]} 14. Bd3 {[%clk 0:01:33]}  Bg6 {[%clk 0:01:46]} 15. Nf5 {[%clk 0:01:26]}  Bxf5 {[%clk 0:01:47]} 16. Rxf5 {[%clk 0:01:20]}  h6 {[%clk 0:01:44]} 17. Bh4 {[%clk 0:01:18]}  a5 {[%clk 0:01:25]} 18. Ref1 {[%clk 0:01:11]}  b4 {[%clk 0:01:15]} 19. Nc4 {[%clk 0:01:03]}  bxc3 {[%clk 0:01:07]} 20. dxe5 {[%clk 0:00:58]}  Nh7 {[%clk 0:00:57]} 21. Bg3 {[%clk 0:00:44]}  Qa7+ {[%clk 0:00:40]} 22. Kh1 {[%clk 0:00:34]}  Rf8 {[%clk 0:00:40]} 23. Qxc3 {[%clk 0:00:29]}  Nc5 {[%clk 0:00:38]} 24. Nd6 {[%clk 0:00:22]}  Nxd3 {[%clk 0:00:29]} 25. Qxd3 {[%clk 0:00:23]}  Rad8 {[%clk 0:00:19]} 26. Qc4 {[%clk 0:00:23]}  Bxd6 {[%clk 0:00:17]} 27. exd6 {[%clk 0:00:23]}  Rxd6 {[%clk 0:00:18]} 28. Bxd6 {[%clk 0:00:23]}  Rd8 {[%clk 0:00:17]} 29. Rxf7 {[%clk 0:00:22]}  Qe3 {[%clk 0:00:05]} 30. Rf8# {[%clk 0:00:21]} 1-0


[Site "https://www.chess.com"]

[Event "Titled Tuesday Blitz March 21 Late 2023"]
[White "Pinheiro, Iung Alicio de O."]
[Black "ritanovikova"]
[WhiteFideId "2104350"]
[WhiteElo "2283"]
[BlackElo "2198"]
[Result "1-0"]
[Round "05"]
[TimeControl "180+2"]
[Date "2023.03.21"]
[WhiteClock "0:00:52"]
[BlackClock "0:00:06"]

1. e4 {[%clk 0:03:00]}  d5 {[%clk 0:01:45]} 2. exd5 {[%clk 0:02:59]}  Qxd5 {[%clk 0:01:45]} 3. Nc3 {[%clk 0:02:59]}  Qd8 {[%clk 0:01:45]} 4. d4 {[%clk 0:02:59]}  Nf6 {[%clk 0:01:45]} 5. Nf3 {[%clk 0:02:59]}  Bg4 {[%clk 0:01:45]} 6. h3 {[%clk 0:02:59]}  Bh5 {[%clk 0:01:45]} 7. g4 {[%clk 0:02:59]}  Bg6 {[%clk 0:01:45]} 8. Ne5 {[%clk 0:03:00]}  Nbd7 {[%clk 0:01:45]} 9. Nxg6 {[%clk 0:02:12]}  hxg6 {[%clk 0:01:44]} 10. Bg2 {[%clk 0:02:13]}  c6 {[%clk 0:01:42]} 11. Bf4 {[%clk 0:02:09]}  e6 {[%clk 0:01:42]} 12. Qd3 {[%clk 0:02:05]}  Nb6 {[%clk 0:01:41]} 13. a3 {[%clk 0:01:58]}  Nbd5 {[%clk 0:01:40]} 14. Bd2 {[%clk 0:01:58]}  Nxc3 {[%clk 0:01:40]} 15. bxc3 {[%clk 0:01:57]}  Bd6 {[%clk 0:01:38]} 16. Rb1 {[%clk 0:01:57]}  Qe7 {[%clk 0:01:37]} 17. a4 {[%clk 0:01:53]}  e5 {[%clk 0:01:27]} 18. O-O {[%clk 0:01:44]}  O-O {[%clk 0:01:21]} 19. a5 {[%clk 0:01:42]}  Rad8 {[%clk 0:01:10]} 20. a6 {[%clk 0:01:40]}  bxa6 {[%clk 0:01:05]} 21. Bxc6 {[%clk 0:01:37]}  exd4 {[%clk 0:01:02]} 22. cxd4 {[%clk 0:01:36]}  Qc7 {[%clk 0:00:48]} 23. Bg2 {[%clk 0:01:31]}  Rb8 {[%clk 0:00:43]} 24. c4 {[%clk 0:01:27]}  a5 {[%clk 0:00:34]} 25. c5 {[%clk 0:01:25]}  Bf4 {[%clk 0:00:32]} 26. Bc3 {[%clk 0:01:15]}  Rbd8 {[%clk 0:00:29]} 27. Qc4 {[%clk 0:01:15]}  Qd7 {[%clk 0:00:25]} 28. Rfd1 {[%clk 0:01:11]}  Nd5 {[%clk 0:00:24]} 29. Bxa5 {[%clk 0:01:11]}  Bc7 {[%clk 0:00:15]} 30. Bxc7 {[%clk 0:01:05]}  Nxc7 {[%clk 0:00:14]} 31. d5 {[%clk 0:01:05]}  Rfe8 {[%clk 0:00:12]} 32. Rb7 {[%clk 0:01:02]}  Qc8 {[%clk 0:00:11]} 33. d6 {[%clk 0:01:02]}  Ne6 {[%clk 0:00:11]} 34. c6 {[%clk 0:01:00]}  g5 {[%clk 0:00:09]} 35. d7 {[%clk 0:00:59]}  Qa8 {[%clk 0:00:07]} 36. dxe8=Q+ {[%clk 0:00:59]}  Rxe8 {[%clk 0:00:08]} 37. c7 {[%clk 0:00:56]}  Nf4 {[%clk 0:00:07]} 38. c8=Q {[%clk 0:00:51]}  Rxc8 {[%clk 0:00:06]} 39. Qxf7+ {[%clk 0:00:52]} 1-0


[Site "https://www.chess.com"]